bitfinex-derivatives/quotes_BTCF0:USTF0_20230701
["timestamp","ask_amount","ask_price","bid_price","bid_amount"]
[1688220423952,0.266819,30586.0,30585.0,0.019619]
[1688220425060,0.266819,30586.0,30582.0,0.058865]
[1688220425248,0.2453,30583.0,30582.0,0.058865]
[1688220425562,0.2453,30583.0,30582.0,0.304665]
[1688220425865,0.2453,30583.0,30582.0,0.3183496]
[1688220426075,0.2453,30583.0,30582.0,0.0725496]
[1688220426652,0.264921,30583.0,30582.0,0.0725496]
[1688220431772,0.264921,30583.0,30582.0,0.07789386]
[1688220433070,0.2453,30583.0,30582.0,0.07789386]
[1688220433963,0.27094076,30583.0,30582.0,0.07789386]
[1688220434932,0.29056176,30583.0,30582.0,0.07789386]
[1688220436674,0.29056176,30583.0,30582.0,0.07769078]
[1688220437567,0.27094076,30583.0,30582.0,0.07769078]
[1688220438665,0.29056176,30583.0,30582.0,0.07769078]
[1688220439291,0.27094076,30583.0,30582.0,0.07769078]
[1688220440682,0.02564076,30583.0,30582.0,0.34182047]
[1688220440879,0.02564076,30583.0,30582.0,0.3338242]
[1688220441067,0.2453,30584.0,30582.0,0.35267365]
[1688220441379,0.2453,30584.0,30583.0,0.26402969]
[1688220441582,0.2453,30584.0,30583.0,0.28365069]
[1688220441878,0.2453,30584.0,30583.0,0.31352785]
[1688220442065,0.2453,30584.0,30583.0,0.27644871]
[1688220442267,0.31931551,30584.0,30583.0,0.27644871]
[1688220442778,0.26492,30584.0,30583.0,0.27644871]
[1688220442984,0.26492,30584.0,30583.0,0.03064871]
[1688220448784,0.01962,30584.0,30583.0,0.03064871]
[1688220449191,0.01962,30584.0,30583.0,0.01102771]
[1688220449687,0.32272,30584.0,30583.0,0.03064871]
[1688220451685,0.68352,30584.0,30583.0,0.03064871]
[1688220452079,0.68328996,30584.0,30583.0,0.03064871]
[1688220460295,0.6639,30584.0,30583.0,0.03064871]
[1688220460490,0.3031,30584.0,30583.0,0.03064871]
[1688220460696,0.2472,30584.0,30583.0,0.03064871]
[1688220461800,0.2472,30584.0,30583.0,0.04949816]
[1688220462099,0.31152738,30584.0,30583.0,0.04949816]
[1688220462308,0.31152738,30584.0,30583.0,0.06772785]
[1688220462696,0.30053622,30584.0,30583.0,0.06772785]
[1688220462999,0.23620884,30584.0,30583.0,0.06772785]
[1688220463189,0.30195435,30584.0,30583.0,0.03064871]
[1688220463385,0.30195435,30584.0,30583.0,0.019621]
[1688220463386,0.66275435,30584.0,30583.0,0.019621]
[1688220463691,0.66275435,30584.0,30583.0,0.03038289]
[1688220463901,0.97335435,30584.0,30583.0,0.03038289]
[1688220464400,1.0,30583.0,30580.0,0.058865]
[1688220464591,1.0,30583.0,30579.0,0.019622]
[1688220464592,0.019622,30580.0,30579.0,0.019622]
[1688220464789,0.264922,30580.0,30579.0,0.019622]
[1688220465496,0.264922,30580.0,30578.0,0.049059]
[1688220465686,0.266723,30579.0,30578.0,0.049059]
[1688220466288,0.266723,30579.0,30576.0,0.065417]
[1688220466289,1.511923,30579.0,30576.0,0.065417]
[1688220466484,1.511923,30579.0,30575.0,0.019624]
[1688220466485,0.019625,30576.0,30575.0,0.019624]
[1688220466685,0.32122051,30576.0,30575.0,0.019624]
[1688220467292,0.62992051,30576.0,30575.0,0.019624]
[1688220467593,0.74739187,30576.0,30575.0,0.02953637]
[1688220468293,1.23658756,30576.0,30575.0,0.02953637]
[1688220469003,1.1191162,30576.0,30575.0,0.02953637]
[1688220469310,1.3645162,30576.0,30574.0,0.049066]
[1688220469487,0.8719162,30576.0,30575.0,0.02705909]
[1688220469691,1.3658162,30576.0,30574.0,0.049066]
[1688220469992,0.8719162,30576.0,30575.0,0.019626]
[1688220470296,1.3654162,30576.0,30575.0,0.02561147]
[1688220470893,1.3654162,30576.0,30575.0,0.00598547]
[1688220471095,1.3654162,30576.0,30572.0,0.019627]
[1688220471096,0.019627,30573.0,30572.0,0.019627]
[1688220471402,0.266827,30573.0,30572.0,0.019627]
[1688220471584,1.266827,30573.0,30572.0,0.019627]
[1688220471785,1.75918692,30573.0,30572.0,0.01962801]
[1688220475334,1.0,30570.0,30568.0,0.3240666]
[1688220475501,0.03196182,30568.0,30567.0,0.019631]
[1688220475690,0.29879182,30568.0,30565.0,0.019632]
[1688220475895,0.2472,30566.0,30565.0,0.019632]
[1688220476096,0.2452,30565.0,30563.0,0.51434191]
[1688220476296,0.2472,30564.0,30563.0,0.49273245]
[1688220476503,0.2472,30564.0,30563.0,0.55163345]
[1688220476702,0.22722409,30564.0,30563.0,0.55163345]
[1688220477004,0.22722409,30564.0,30563.0,0.42608014]
[1688220477205,0.22722409,30564.0,30563.0,0.40785045]
[1688220477395,0.22722409,30564.0,30563.0,0.389001]
[1688220477591,0.22722409,30564.0,30563.0,0.42608014]
[1688220480102,0.06963,30568.0,30564.0,0.03707914]
[1688220480306,0.06963,30568.0,30567.0,0.019631]
[1688220480496,0.31663,30568.0,30567.0,0.019631]
[1688220480697,0.31663,30568.0,30567.0,0.03848045]
[1688220480909,0.297,30568.0,30567.0,0.03848045]
[1688220481103,0.3233908,30568.0,30567.0,0.39393986]
[1688220481304,0.2733908,30568.0,30567.0,0.37531014]
[1688220481505,0.2735908,30568.0,30567.0,0.62081014]
[1688220486112,0.0263908,30568.0,30567.0,0.62081014]
[1688220486504,0.2472,30569.0,30567.0,0.63024908]
[1688220486810,0.2472,30569.0,30568.0,0.28337914]
[1688220487001,0.2472,30569.0,30568.0,0.30300914]
[1688220487201,0.2472,30569.0,30568.0,0.31244761]
[1688220492212,0.2472,30569.0,30568.0,0.29421792]
[1688220492520,0.2472,30569.0,30568.0,0.02906847]
[1688220492521,0.62491678,30569.0,30568.0,0.02906847]
[1688220492908,0.62491678,30569.0,30568.0,0.00943847]
[1688220493615,1.87211678,30569.0,30562.0,0.058903]
[1688220493813,0.266833,30563.0,30562.0,0.058903]
[1688220494021,0.32122851,30563.0,30562.0,0.058903]
[1688220494709,0.981299,30565.0,30562.0,0.058903]
[1688220494913,0.2472,30563.0,30562.0,0.304703]
[1688220495509,0.266834,30563.0,30562.0,0.304703]
[1688220495918,0.266834,30563.0,30562.0,0.058903]
[1688220496421,0.2472,30563.0,30562.0,0.45678214]
[1688220498212,0.2472,30563.0,30562.0,0.09598214]
[1688220498406,0.2472,30563.0,30562.0,0.07713269]
[1688220499126,0.2472,30563.0,30562.0,0.09598214]
[1688220499415,0.2472,30563.0,30562.0,0.45678214]
[1688220499917,0.2472,30563.0,30562.0,0.419703]
[1688220500120,0.2472,30563.0,30562.0,0.43793269]
[1688220500709,0.2472,30563.0,30562.0,0.45678214]
[1688220501220,0.2472,30563.0,30562.0,0.46559141]
[1688220504419,0.2472,30563.0,30562.0,0.71149141]
[1688220505624,0.2472,30563.0,30562.0,0.67441227]
[1688220505810,0.2472,30563.0,30562.0,0.69264196]
[1688220506428,0.2472,30563.0,30562.0,0.71149141]
[1688220508131,0.02559755,30565.0,30562.0,0.71279141]
[1688220508324,0.02559755,30565.0,30564.0,0.2472]
[1688220508625,0.2476908,30566.0,30564.0,0.27560956]
[1688220508828,0.27450673,30566.0,30565.0,0.66471114]
[1688220509332,0.27450673,30566.0,30565.0,0.67348744]
[1688220514426,0.02730673,30566.0,30565.0,0.67208744]
[1688220533937,0.02730673,30566.0,30565.0,0.66905167]
[1688220551357,0.27260673,30566.0,30565.0,0.38617253]
[1688220552258,0.57440673,30566.0,30565.0,0.38617253]
[1688220552556,0.29799955,30566.0,30565.0,0.40502198]
[1688220553253,0.29799955,30566.0,30565.0,0.38617253]
[1688220554150,0.32482237,30566.0,30565.0,0.38617253]
[1688220554359,0.57192237,30566.0,30565.0,0.38617253]
[1688220555760,0.59155337,30566.0,30565.0,0.38617253]
[1688220556261,0.57192237,30566.0,30565.0,0.38617253]
[1688220556649,0.57192237,30566.0,30565.0,0.40502198]
[1688220557847,0.57192237,30566.0,30565.0,0.42325167]
[1688220558160,0.57192237,30566.0,30565.0,0.40502198]
[1688220558361,0.57192237,30566.0,30565.0,0.38617253]
[1688220559856,0.57192237,30566.0,30565.0,0.40502198]
[1688220560565,0.57192237,30566.0,30565.0,0.42325167]
[1688220560763,0.57192237,30566.0,30565.0,0.40502198]
[1688220562058,0.57192237,30566.0,30565.0,0.42325167]
[1688220562258,0.57192237,30566.0,30565.0,0.40502198]
[1688220563953,0.57192237,30566.0,30565.0,0.47764718]
[1688220564152,0.57192237,30566.0,30565.0,0.42325167]
[1688220564562,0.57192237,30566.0,30565.0,0.40502198]
[1688220566161,0.57192237,30566.0,30565.0,0.42325167]
[1688220568566,0.32482237,30566.0,30565.0,0.67045167]
[1688220570052,0.32482237,30566.0,30565.0,1.00095167]
[1688220571866,0.32482237,30566.0,30565.0,1.00982326]
[1688220573377,0.02682282,30566.0,30565.0,1.00982326]
[1688220573674,0.00049075,30569.0,30565.0,1.37062326]
[1688220573858,0.00049075,30569.0,30568.0,0.6061]
[1688220574061,0.00049075,30569.0,30568.0,0.66280914]
[1688220574358,0.51718164,30569.0,30568.0,0.67736973]
[1688220574567,0.4905892,30569.0,30568.0,0.67736973]
[1688220577473,0.4905892,30569.0,30568.0,0.68622798]
[1688220578075,0.16347109,30569.0,30568.0,0.68622798]
[1688220578568,0.41951073,30570.0,30568.0,0.68814884]
[1688220578776,0.41951073,30570.0,30569.0,0.265429]
[1688220578972,0.09238729,30570.0,30569.0,0.28892743]
[1688220579166,0.58160796,30570.0,30569.0,0.32600657]
[1688220579366,0.25448987,30570.0,30569.0,0.32600657]
[1688220580373,0.50148987,30570.0,30569.0,0.32600657]
[1688220581472,0.50148987,30570.0,30569.0,0.30715712]
[1688220582177,0.52777639,30570.0,30569.0,0.30715712]
[1688220582485,0.52777639,30570.0,30569.0,0.32600657]
[1688220584070,0.52777639,30570.0,30569.0,0.62800657]
[1688220584469,0.52797639,30570.0,30569.0,0.62750657]
[1688220591191,0.28077639,30570.0,30569.0,0.98890657]
[1688220595676,0.02628652,30570.0,30569.0,0.98890657]
[1688220595991,0.24579069,30573.0,30569.0,0.98890657]
[1688220596211,0.24579069,30573.0,30572.0,0.627628]
[1688220596685,0.24579069,30573.0,30572.0,0.68563373]
[1688220596988,0.73753239,30573.0,30572.0,0.68563373]
[1688220598779,0.76412052,30573.0,30572.0,0.68563373]
[1688220600780,0.51882052,30573.0,30572.0,0.68503373]
[1688220601588,0.2472,30576.0,30572.0,0.68503373]
[1688220601783,0.2472,30576.0,30575.0,0.6071]
[1688220602095,0.2472,30576.0,30575.0,0.66380514]
[1688220602300,0.76125553,30576.0,30575.0,0.66380514]
[1688220604412,0.51405553,30576.0,30575.0,0.66330514]
[1688220604705,0.00049058,30579.0,30575.0,0.66330514]
[1688220604881,0.00049058,30579.0,30578.0,0.6071]
[1688220605190,0.02643677,30579.0,30578.0,0.68111951]
[1688220605401,0.49112032,30579.0,30578.0,0.71819865]
[1688220605694,0.49112032,30579.0,30578.0,1.03409865]
[1688220606000,0.1794804,30579.0,30578.0,1.03409865]
[1688220606296,0.09965859,30580.0,30579.0,0.03707914]
[1688220606487,0.2471,30580.0,30579.0,0.28377245]
[1688220606683,0.7660184,30583.0,30579.0,0.264923]
[1688220606881,0.83293615,30583.0,30580.0,0.03707914]
[1688220607090,0.83293615,30583.0,30581.0,0.019622]
[1688220607283,0.74058121,30582.0,30581.0,0.019622]
[1688220607498,0.74058121,30582.0,30581.0,0.380422]
[1688220607785,0.74058121,30582.0,30581.0,0.41750114]
[1688220609796,0.49338121,30582.0,30581.0,0.66340114]
[1688220614001,0.50799122,30582.0,30581.0,0.66340114]
[1688220619590,0.01461001,30582.0,30581.0,0.66340114]
[1688220620595,0.02574575,30583.0,30582.0,0.2472]
[1688220620783,0.18289192,30590.0,30583.0,0.019621]
[1688220620784,0.22984842,30589.0,30583.0,0.019621]
[1688220620987,0.1174978,30590.0,30589.0,0.019617]
[1688220621193,0.05757949,30591.0,30590.0,0.03707914]
[1688220621502,0.74061262,30591.0,30590.0,0.28566445]
[1688220621702,0.74061262,30591.0,30590.0,0.59906445]
[1688220621904,0.74061262,30591.0,30590.0,0.61729414]
[1688220622989,0.74061262,30591.0,30590.0,0.30389414]
[1688220623401,0.81299951,30591.0,30590.0,0.28504469]
[1688220623706,0.81289951,30591.0,30590.0,0.019615]
[1688220624191,0.81289951,30591.0,30590.0,0.03784469]
[1688220625787,0.76012762,30591.0,30590.0,0.05669414]
[1688220627800,0.76012762,30591.0,30590.0,0.019615]
[1688220627995,0.76012762,30591.0,30590.0,0.01520295]
[1688220628190,1.14067784,30591.0,30590.0,0.01520295]
[1688220639001,0.77987784,30591.0,30590.0,0.01520295]
[1688220640911,0.76498866,30591.0,30590.0,0.01520295]
[1688220641220,0.76498866,30591.0,30589.0,0.019617]
[1688220641402,0.266816,30590.0,30589.0,0.019617]
[1688220641602,0.27196417,30590.0,30589.0,0.019617]
[1688220642004,0.7642065,30590.0,30589.0,0.019617]
[1688220643801,0.7642065,30590.0,30589.0,0.03846645]
[1688220644203,0.7642065,30590.0,30589.0,0.35336645]
[1688220646912,0.7642065,30590.0,30589.0,0.334517]
[1688220656218,0.7642065,30590.0,30589.0,0.363939]
[1688220665718,0.7642065,30590.0,30589.0,0.38278845]
[1688220666929,0.7642065,30590.0,30589.0,0.363939]
[1688220669323,0.7642065,30590.0,30589.0,0.36384934]
[1688220669923,0.7592065,30590.0,30589.0,0.36384934]
[1688220675822,0.7542065,30590.0,30589.0,0.36384934]
[1688220681340,0.44118987,30590.0,30589.0,0.40092848]
[1688220681735,0.11428565,30590.0,30589.0,0.40092848]
[1688220681936,0.09466965,30590.0,30589.0,0.40092848]
[1688220682131,0.14895429,30592.0,30590.0,0.03707914]
[1688220682332,0.26973098,30591.0,30590.0,0.019616]
[1688220682528,0.66197163,30591.0,30590.0,0.019616]
[1688220682733,0.66197163,30591.0,30590.0,0.05669514]
[1688220682935,0.66197163,30591.0,30590.0,0.03846545]
[1688220683940,0.66197163,30591.0,30590.0,0.019616]
[1688220698656,0.66197163,30591.0,30590.0,0.0195229]
[1688220707559,0.3350781,30591.0,30590.0,0.09276786]
[1688220707766,0.3546941,30591.0,30590.0,0.03837235]
[1688220708066,0.02780057,30591.0,30590.0,0.03837235]
[1688220708456,0.7177874,30593.0,30591.0,0.01884945]
[1688220708658,0.553246,30592.0,30591.0,0.019615]
[1688220708864,0.5564993,30592.0,30591.0,0.019615]
[1688220711463,0.5172683,30592.0,30591.0,0.019615]
[1688220714359,0.2700683,30592.0,30591.0,0.019615]
[1688220716573,0.33524607,30592.0,30591.0,0.019615]
[1688220718263,0.33524607,30592.0,30591.0,0.03846445]
[1688220718977,0.33524607,30592.0,30591.0,0.28566445]
[1688220718978,0.2504533,30592.0,30591.0,0.28566445]
[1688220719175,0.2504533,30592.0,30591.0,0.66469414]
[1688220720570,0.2504533,30592.0,30591.0,0.64646445]
[1688220721075,0.2504533,30592.0,30591.0,0.66469414]
[1688220721269,0.2504533,30592.0,30591.0,0.62754275]
[1688220721465,0.2504533,30592.0,30591.0,0.64577244]
[1688220721665,0.2504533,30592.0,30591.0,0.95827244]
[1688220721969,0.2504533,30592.0,30591.0,0.61632189]
[1688220722177,0.2700683,30592.0,30591.0,0.61632189]
[1688220724177,0.2700683,30592.0,30591.0,0.5980922]
[1688220724379,0.2700683,30592.0,30591.0,0.36912189]
[1688220724572,0.2700683,30592.0,30591.0,0.3508922]
[1688220724968,0.2700683,30592.0,30591.0,0.36912189]
[1688220725176,0.2700683,30592.0,30591.0,0.3508922]
[1688220726071,0.2700683,30592.0,30591.0,0.33204275]
[1688220729498,0.8760683,30592.0,30591.0,0.33204275]
[1688220734274,0.8760683,30592.0,30591.0,0.33186241]
[1688220737580,0.94111899,30592.0,30591.0,0.33186241]
[1688220741381,0.94111899,30592.0,30591.0,0.32320698]
[1688220754997,0.94111899,30592.0,30591.0,0.32301288]
[1688220756094,0.58031899,30592.0,30591.0,0.32301288]
[1688220756590,0.58031899,30592.0,30591.0,0.3199323]
[1688220763004,0.56693565,30592.0,30591.0,0.3199323]
[1688220763193,1.05752579,30592.0,30591.0,0.3199323]
[1688220764805,1.41832579,30592.0,30591.0,0.3199323]
[1688220766805,1.41832579,30592.0,30591.0,0.30993747]
[1688220767495,1.41832579,30592.0,30591.0,0.32955247]
[1688220773706,1.3532751,30592.0,30591.0,0.32955247]
[1688220774601,0.51020514,30592.0,30591.0,0.32955247]
[1688220775005,0.18332229,30592.0,30591.0,0.38563161]
[1688220775513,0.34913944,30592.0,30591.0,0.34840192]
[1688220775705,0.36875444,30592.0,30591.0,0.32955247]
[1688220776012,0.0418785,30592.0,30591.0,0.38394798]
[1688220776212,0.0418785,30592.0,30591.0,0.40394798]
[1688220776408,0.11765188,30594.0,30591.0,0.32955247]
[1688220776608,0.514015,30592.0,30591.0,0.32955247]
[1688220776909,0.049036,30593.0,30591.0,0.34778216]
[1688220777207,0.513115,30592.0,30591.0,0.34778216]
[1688220777413,0.049036,30593.0,30591.0,0.32955247]
[1688220777708,0.18713215,30592.0,30591.0,0.32955247]
[1688220777909,0.17649388,30594.0,30591.0,0.32955247]
[1688220778113,0.20239198,30594.0,30592.0,0.01884945]
[1688220778321,0.14354998,30594.0,30593.0,0.019614]
[1688220778612,0.14354998,30594.0,30593.0,0.05669314]
[1688220778613,0.39074998,30594.0,30593.0,0.05669314]
[1688220778914,0.2730981,30594.0,30593.0,0.05669314]
[1688220782722,0.2730981,30594.0,30593.0,0.41749314]
[1688220783917,0.1769981,30594.0,30593.0,0.66379314]
[1688220784411,0.2471,30594.0,30593.0,0.66379314]
[1688220785415,0.27302565,30594.0,30593.0,0.66379314]
[1688220787224,0.02592565,30594.0,30593.0,0.66379314]
[1688220787719,0.33968331,30595.0,30593.0,0.66379314]
[1688220787914,0.33968331,30595.0,30594.0,0.28334369]
[1688220788103,0.33968331,30595.0,30594.0,0.61859314]
[1688220791627,0.33968331,30595.0,30594.0,0.30219314]
[1688220793324,0.33968331,30595.0,30594.0,0.28334369]
[1688220793516,0.33968331,30595.0,30594.0,0.265114]
[1688220793724,0.33968331,30595.0,30594.0,0.28396345]
[1688220793919,0.33968331,30595.0,30594.0,0.30219314]
[1688220794518,0.33948331,30595.0,30594.0,0.05669314]
[1688220795224,0.33948331,30595.0,30594.0,0.03846345]
[1688220796024,0.33929375,30595.0,30594.0,0.03846345]
[1688220796217,0.33929375,30595.0,30594.0,0.019614]
[1688220802914,0.33929375,30595.0,30594.0,0.319914]
[1688220803930,0.33929375,30595.0,30594.0,0.33876345]
[1688220806231,0.33929375,30595.0,30594.0,0.319914]
[1688220808252,0.33929375,30595.0,30594.0,0.33864903]
[1688220808436,0.33929375,30595.0,30594.0,0.31979958]
[1688220810037,0.33929375,30595.0,30594.0,0.33864903]
[1688220810731,0.71970675,30595.0,30594.0,0.319914]
[1688220810937,0.71970675,30595.0,30594.0,0.019614]
[1688220811335,0.71970675,30595.0,30593.0,0.023135]
[1688220811539,0.71970675,30595.0,30593.0,0.019614]
[1688220811540,0.608,30594.0,30593.0,0.019614]
[1688220811837,0.608,30594.0,30591.0,0.019615]
[1688220811838,2.36300864,30594.0,30591.0,0.019615]
[1688220812044,0.514015,30592.0,30591.0,0.019615]
[1688220812538,0.5320603,30592.0,30591.0,0.019615]
[1688220813237,0.5320603,30592.0,30591.0,0.009615]
[1688220813423,0.5320603,30592.0,30591.0,0.019615]
[1688220817650,0.8928603,30592.0,30591.0,0.019615]
[1688220818731,1.01065776,30592.0,30591.0,0.019615]
[1688220818926,0.64985776,30592.0,30591.0,0.019615]
[1688220819131,1.01065776,30592.0,30591.0,0.019615]
[1688220825644,1.01065776,30592.0,30591.0,0.01954729]
[1688220828151,1.07736921,30592.0,30591.0,0.01954729]
[1688220829747,0.71656921,30592.0,30591.0,0.01954729]
[1688220829958,1.07736921,30592.0,30591.0,0.01954729]
[1688220831062,0.95957175,30592.0,30591.0,0.01954729]
[1688220833843,1.07738527,30592.0,30591.0,0.01954729]
[1688220835160,0.95957175,30592.0,30591.0,0.01954729]
[1688220837755,1.07738637,30592.0,30591.0,0.01954729]
[1688220837958,1.07738637,30592.0,30591.0,0.01941877]
[1688220838360,0.99105992,30592.0,30591.0,0.01941877]
[1688220839061,0.8732453,30592.0,30591.0,0.01941877]
[1688220839248,0.5124453,30592.0,30591.0,0.01941877]
[1688220840157,0.5124453,30592.0,30590.0,0.04324233]
[1688220840358,0.2652453,30592.0,30591.0,0.019615]
[1688220840655,0.5124453,30592.0,30591.0,0.019615]
[1688220840858,0.5320593,30592.0,30591.0,0.019615]
[1688220842762,0.5124453,30592.0,30591.0,0.019615]
[1688220843154,0.5320603,30592.0,30591.0,0.019615]
[1688220844459,0.2848603,30592.0,30591.0,0.019615]
[1688220845460,0.2652453,30592.0,30591.0,0.019615]
[1688220845648,0.2652453,30592.0,30591.0,0.03846445]
[1688220847664,0.2652453,30592.0,30591.0,0.019615]
[1688220848877,0.2848593,30592.0,30591.0,0.019615]
[1688220851873,0.2652453,30592.0,30591.0,0.019615]
[1688220853765,0.2848593,30592.0,30591.0,0.019615]
[1688220855662,0.2848593,30592.0,30591.0,0.03846445]
[1688220855855,0.2652453,30592.0,30591.0,0.03846445]
[1688220860258,0.33077524,30592.0,30591.0,0.03846445]
[1688220860662,0.0180453,30592.0,30591.0,0.30389414]
[1688220861056,0.2472,30593.0,30591.0,0.28566445]
[1688220861257,0.2472,30593.0,30592.0,0.2459]
[1688220861556,0.2472,30593.0,30592.0,0.575815]
[1688220861755,0.26004217,30593.0,30592.0,0.575815]
[1688220862964,0.27965617,30593.0,30592.0,0.575815]
[1688220864370,0.27965617,30593.0,30592.0,0.329915]
[1688220867466,0.27965617,30593.0,30592.0,0.32979851]
[1688220868368,0.26004217,30593.0,30592.0,0.32979851]
[1688220868764,0.27965617,30593.0,30592.0,0.32979851]
[1688220880170,0.27965617,30593.0,30592.0,0.31793761]
[1688220880364,0.27965617,30593.0,30592.0,0.30255191]
[1688220883186,0.27965617,30593.0,30592.0,0.32140136]
[1688220883575,0.27965617,30593.0,30592.0,0.30255191]
[1688220888772,0.26004217,30593.0,30592.0,0.32140136]
[1688220891182,0.26004217,30593.0,30592.0,0.30255191]
[1688220891582,0.62084217,30593.0,30592.0,0.30255191]
[1688220893280,0.62084217,30593.0,30592.0,0.3024434]
[1688220893784,0.64045617,30593.0,30592.0,0.3024434]
[1688220895592,0.64045617,30593.0,30592.0,0.27693335]
[1688220896585,0.62084217,30593.0,30592.0,0.27693335]
[1688220897091,0.26004217,30593.0,30592.0,0.27693335]
[1688220897690,0.27965617,30593.0,30592.0,0.27693335]
[1688220901490,0.28527498,30593.0,30592.0,0.27693335]
[1688220904197,0.64607498,30593.0,30592.0,0.27693335]
[1688220905299,0.64607498,30593.0,30592.0,0.26166108]
[1688220907602,0.64607498,30593.0,30592.0,0.23508021]
[1688220908887,0.62646098,30593.0,30592.0,0.23508021]
[1688220911400,0.64607498,30593.0,30592.0,0.23508021]
[1688220912907,0.62646098,30593.0,30592.0,0.23508021]
[1688220913298,0.26566098,30593.0,30592.0,0.23508021]
[1688220913905,0.26566098,30593.0,30592.0,0.25392966]
[1688220914410,0.26566098,30593.0,30592.0,0.50112966]
[1688220915597,0.26566098,30593.0,30592.0,0.51935935]
[1688220916213,0.26566098,30593.0,30592.0,0.52395935]
[1688220916214,0.01846098,30593.0,30592.0,0.52395935]
[1688220916511,0.33949375,30595.0,30592.0,0.52395935]
[1688220916808,0.33949375,30595.0,30594.0,0.266814]
[1688220917201,0.33949375,30595.0,30594.0,0.30389314]
[1688220920416,0.11781462,30598.0,30595.0,0.0065]
[1688220920708,0.17555,30602.0,30597.0,0.6067]
[1688220920913,0.17555,30602.0,30601.0,0.2472]
[1688220921113,1.1409955,30603.0,30601.0,0.627608]
[1688220921312,0.24855973,30602.0,30601.0,0.627608]
[1688220921508,0.0919755,30603.0,30601.0,0.627608]
[1688220921714,0.0919755,30603.0,30602.0,0.01884945]
[1688220922014,0.247,30603.0,30602.0,0.03845745]
[1688220922312,0.247,30603.0,30602.0,0.05668714]
[1688220923712,0.4887242,30603.0,30602.0,0.30328714]
[1688220923935,0.4887242,30603.0,30602.0,0.63278714]
[1688220924215,0.5052485,30603.0,30602.0,0.63278714]
[1688220934321,0.5052485,30603.0,30602.0,0.63259001]
[1688220937412,0.50515153,30603.0,30602.0,0.63259001]
[1688220942728,0.50515153,30603.0,30602.0,0.61436032]
[1688220943437,0.50515153,30603.0,30602.0,0.63259001]
[1688220944042,0.50515153,30603.0,30602.0,0.61436032]
[1688220944332,0.50515153,30603.0,30602.0,0.97516032]
[1688220944726,0.50515153,30603.0,30602.0,0.99339001]
[1688220944922,0.50515153,30603.0,30602.0,0.97516032]
[1688220945228,0.75045153,30603.0,30602.0,0.019608]
[1688220945437,0.77005853,30603.0,30602.0,0.01646587]
[1688220947531,0.77005853,30603.0,30601.0,0.02442658]
[1688220947742,0.608,30602.0,30598.0,0.20435813]
[1688220947934,0.019609,30601.0,30599.0,0.02887943]
[1688220948148,0.2472,30600.0,30599.0,0.02887943]
[1688220948430,0.266809,30600.0,30599.0,0.02887943]
[1688220948631,0.27886121,30600.0,30599.0,0.02887943]
[1688220949334,0.049024,30601.0,30599.0,0.02887943]
[1688220949537,0.27584904,30600.0,30599.0,0.02887943]
[1688220949835,0.02860097,30600.0,30599.0,0.08327494]
[1688220950037,0.02634109,30600.0,30599.0,0.08327494]
[1688220950334,0.02634083,30600.0,30599.0,0.10212439]
[1688220950520,0.27354083,30600.0,30599.0,0.02887943]
[1688220950726,0.27017515,30600.0,30599.0,0.02887943]
[1688220951132,0.46945777,30602.0,30599.0,0.02887943]
[1688220951433,0.264909,30600.0,30599.0,0.02887943]
[1688220951634,0.45659548,30602.0,30599.0,0.02887943]
[1688220951828,0.266809,30600.0,30599.0,0.38967943]
[1688220952035,0.02594884,30600.0,30599.0,0.38967943]
[1688220952250,0.04555784,30600.0,30599.0,0.38967943]
[1688220954534,0.04555784,30600.0,30599.0,0.419625]
[1688220958432,0.04555784,30600.0,30599.0,0.43847445]
[1688220959736,0.02594884,30600.0,30599.0,0.43847445]
[1688220961941,0.02594884,30600.0,30599.0,0.419625]
[1688220963045,0.02594884,30600.0,30599.0,0.43847445]
[1688220963648,0.2472,30601.0,30599.0,0.70300414]
[1688220963941,0.06579078,30602.0,30601.0,0.019609]
[1688220964144,0.06579078,30602.0,30601.0,0.265109]
[1688220964344,0.36547341,30603.0,30601.0,0.265109]
[1688220964543,0.36547341,30603.0,30602.0,0.64585745]
[1688220964743,0.36547341,30603.0,30602.0,0.66408714]
[1688220964945,0.85818912,30603.0,30602.0,0.64585745]
[1688220966142,0.85818912,30603.0,30602.0,0.627008]
[1688220966750,0.85818912,30603.0,30602.0,0.6268953]
[1688220967050,0.87779612,30603.0,30602.0,0.6268953]
[1688220967642,0.63059612,30603.0,30602.0,0.6268953]
[1688220971751,0.87759612,30603.0,30602.0,0.3802953]
[1688220972153,0.87759612,30603.0,30602.0,0.019608]
[1688220977039,0.87759612,30603.0,30601.0,0.24725025]
[1688220977243,0.2472,30602.0,30601.0,0.294321]
[1688220977554,0.266808,30602.0,30601.0,0.294321]
[1688220979046,0.266808,30602.0,30601.0,0.24313036]
[1688220984455,0.266808,30602.0,30601.0,0.03372753]
[1688220988251,0.33349875,30602.0,30601.0,0.03372753]
[1688220990662,0.33349875,30602.0,30601.0,0.049021]
[1688220994971,0.33349875,30602.0,30601.0,0.409821]
[1688220995759,0.31389075,30602.0,30601.0,0.409821]
[1688220997472,0.31389075,30602.0,30601.0,0.049021]
[1688220997663,0.31389075,30602.0,30601.0,0.409821]
[1688221003777,0.31389075,30602.0,30601.0,0.4095992]
[1688221004482,0.31389075,30602.0,30601.0,0.6561992]
[1688221007769,0.31389075,30602.0,30601.0,0.2953992]
[1688221012784,0.33349875,30602.0,30601.0,0.2953992]
[1688221013682,0.33349875,30602.0,30601.0,0.2853992]
[1688221014372,0.33349875,30602.0,30601.0,0.0387992]
[1688221020390,0.33349875,30602.0,30601.0,0.049021]
[1688221020602,0.33349875,30602.0,30601.0,0.02326393]
[1688221021490,0.33349875,30602.0,30601.0,0.049021]
[1688221021683,0.33349875,30602.0,30601.0,0.04138177]
[1688221025294,0.33349875,30602.0,30601.0,0.02059877]
[1688221027093,0.33349875,30602.0,30600.0,0.92739946]
[1688221027294,0.2472,30601.0,30600.0,0.92739946]
[1688221027998,0.266809,30601.0,30600.0,0.92739946]
[1688221028191,0.266809,30601.0,30600.0,0.9015586]
[1688221036000,0.2472,30601.0,30600.0,0.9015586]
[1688221039794,0.266809,30601.0,30600.0,0.9015586]
[1688221040196,0.266809,30601.0,30600.0,0.90145418]
[1688221043506,0.266809,30601.0,30600.0,0.88517386]
[1688221043706,0.266809,30601.0,30600.0,0.86812061]
[1688221045110,0.266809,30601.0,30600.0,0.84184644]
[1688221046802,0.2472,30601.0,30600.0,0.84184644]
[1688221048409,0.16126522,30601.0,30600.0,0.84184644]
[1688221048815,1.08807427,30603.0,30600.0,0.84184644]
[1688221049004,0.2472,30601.0,30600.0,0.86184644]
[1688221049316,1.42898956,30604.0,30601.0,0.07324496]
[1688221049512,0.2472,30602.0,30601.0,0.10341751]
[1688221049700,0.402608,30604.0,30602.0,0.01822969]
[1688221049904,0.402608,30604.0,30603.0,0.019608]